[Event "13 Open de Quenza"]
[Site "Quenza, France"]
[Date "2024.07.07"]
[Round "9.3"]
[White "Fedorchuk, Sergey A."]
[Black "Dourerassou, Jonathan"]
[Result "1-0"]
[TimeControl "5min+3s/move"]
[WhiteElo "2554"]
[BlackElo "2422"]

1. e4 {[%clk 00:05:03]} {[%emt 00:00:01]} c5 {[%clk 00:05:03]} {[%emt
00:00:01]} 2. Nf3 {[%clk 00:05:03]} {[%emt 00:00:01]} e6 {[%clk 00:05:03]}
{[%emt 00:00:01]} 3. d4 {[%clk 00:05:03]} {[%emt 00:00:04]} cxd4 {[%clk
00:05:03]} {[%emt 00:00:01]} 4. Nxd4 {[%clk 00:05:03]} {[%emt 00:00:02]} Nf6
{[%clk 00:05:03]} {[%emt 00:00:01]} 5. Nd2 {[%clk 00:04:50]} {[%emt 00:00:16]}
Nc6 {[%clk 00:05:02]} {[%emt 00:00:04]} 6. Nxc6 {[%clk 00:04:50]} {[%emt
00:00:02]} dxc6 {[%clk 00:05:00]} {[%emt 00:00:06]} 7. Bd3 {[%clk 00:04:32]}
{[%emt 00:00:21]} e5 {[%clk 00:04:58]} {[%emt 00:00:05]} 8. a4 {[%clk
00:04:26]} {[%emt 00:00:09]} Bg4 {[%clk 00:04:45]} {[%emt 00:00:15]} 9. Nf3
{[%clk 00:04:04]} {[%emt 00:00:26]} Qc7 {[%clk 00:04:37]} {[%emt 00:00:11]} 10.
h3 {[%clk 00:04:04]} {[%emt 00:00:02]} Bh5 {[%clk 00:04:37]} {[%emt 00:00:01]}
11. Qe2 {[%clk 00:04:03]} {[%emt 00:00:04]} h6 {[%clk 00:04:37]} {[%emt
00:00:03]} 12. Bd2 {[%clk 00:03:44]} {[%emt 00:00:22]} Bc5 {[%clk 00:04:33]}
{[%emt 00:00:07]} 13. b4 {[%clk 00:03:30]} {[%emt 00:00:17]} Bd6 {[%clk
00:04:28]} {[%emt 00:00:07]} 14. Qe3 {[%clk 00:03:30]} {[%emt 00:00:02]} Bg6
{[%clk 00:04:18]} {[%emt 00:00:13]} 15. Nh4 {[%clk 00:03:28]} {[%emt 00:00:05]}
Bh7 {[%clk 00:04:18]} {[%emt 00:00:03]} 16. Qf3 {[%clk 00:03:21]} {[%emt
00:00:10]} Qe7 {[%clk 00:04:15]} {[%emt 00:00:05]} 17. b5 {[%clk 00:02:57]}
{[%emt 00:00:28]} Bb4 {[%clk 00:03:56]} {[%emt 00:00:22]} 18. c3 {[%clk
00:02:44]} {[%emt 00:00:16]} Bc5 {[%clk 00:03:56]} {[%emt 00:00:01]} 19. Nf5
{[%clk 00:01:40]} {[%emt 00:01:07]} Bxf5 {[%clk 00:03:56]} {[%emt 00:00:02]} 20.
Qxf5 {[%clk 00:01:40]} {[%emt 00:00:01]} Rd8 {[%clk 00:03:56]} 21. Qf3 {[%clk
00:01:40]} {[%emt 00:00:02]} Qd6 {[%clk 00:03:46]} {[%emt 00:00:13]} 22. Ke2
{[%clk 00:01:40]} {[%emt 00:00:01]} Bxf2 {[%clk 00:03:34]} {[%emt 00:00:15]} 23.
Rad1 {[%clk 00:01:20]} {[%emt 00:00:24]} Bc5 {[%clk 00:03:29]} {[%emt
00:00:08]} 24. Bc4 {[%clk 00:01:15]} {[%emt 00:00:08]} Qe7 {[%clk 00:03:28]}
{[%emt 00:00:04]} 25. g4 {[%clk 00:01:12]} {[%emt 00:00:06]} Nh7 {[%clk
00:03:23]} {[%emt 00:00:07]} 26. h4 {[%clk 00:01:12]} {[%emt 00:00:02]} Nf8
{[%clk 00:03:23]} {[%emt 00:00:01]} 27. Rhf1 {[%clk 00:01:00]} {[%emt
00:00:15]} Ne6 {[%clk 00:03:21]} {[%emt 00:00:05]} 28. Qf5 {[%clk 00:00:59]}
{[%emt 00:00:04]} O-O {[%clk 00:02:42]} {[%emt 00:00:42]} 29. g5 {[%clk
00:00:59]} {[%emt 00:00:03]} g6 {[%clk 00:02:21]} {[%emt 00:00:24]} 30. Qxe5
{[%clk 00:00:52]} {[%emt 00:00:10]} Bd6 {[%clk 00:02:15]} {[%emt 00:00:09]} 31.
Qf6 {[%clk 00:00:52]} {[%emt 00:00:03]} Qxf6 {[%clk 00:02:10]} {[%emt
00:00:08]} 32. Rxf6 {[%clk 00:00:43]} {[%emt 00:00:12]} Be5 {[%clk 00:02:10]}
{[%emt 00:00:02]} 33. Rf3 {[%clk 00:00:39]} {[%emt 00:00:07]} hxg5 {[%clk
00:02:09]} {[%emt 00:00:04]} 34. hxg5 {[%clk 00:00:25]} {[%emt 00:00:16]} Rfe8
{[%clk 00:02:09]} {[%emt 00:00:02]} 35. Rdf1 {[%clk 00:00:23]} {[%emt
00:00:04]} Rd7 {[%clk 00:02:09]} {[%emt 00:00:01]} 36. Bc1 {[%clk 00:00:23]}
{[%emt 00:00:03]} Bg7 {[%clk 00:02:09]} {[%emt 00:00:03]} 37. a5 {[%clk
00:00:20]} {[%emt 00:00:07]} Nd8 {[%clk 00:02:06]} {[%emt 00:00:06]} 38. Re3
{[%clk 00:00:18]} {[%emt 00:00:05]} Re5 {[%clk 00:02:04]} {[%emt 00:00:05]} 39.
bxc6 {[%clk 00:00:18]} {[%emt 00:00:03]} Nxc6 {[%clk 00:02:04]} {[%emt
00:00:03]} 40. a6 {[%clk 00:00:18]} {[%emt 00:00:01]} bxa6 {[%clk 00:02:04]}
{[%emt 00:00:02]} 41. Bd5 {[%clk 00:00:16]} {[%emt 00:00:04]} Nd8 {[%clk
00:01:59]} {[%emt 00:00:07]} 42. c4 {[%clk 00:00:16]} {[%emt 00:00:01]} Rxg5
{[%clk 00:01:58]} {[%emt 00:00:04]} 43. Rb3 {[%clk 00:00:16]} Rg2+ {[%clk
00:01:57]} {[%emt 00:00:04]} 44. Kf3 {[%clk 00:00:16]} {[%emt 00:00:01]} Rh2
{[%clk 00:01:55]} {[%emt 00:00:05]} 45. Rb8 {[%clk 00:00:16]} Kh7 {[%clk
00:01:55]} {[%emt 00:00:03]} 46. Bf4 {[%clk 00:00:16]} {[%emt 00:00:02]} Rh5
{[%clk 00:01:55]} {[%emt 00:00:03]} 47. Rfb1 {[%clk 00:00:13]} {[%emt
00:00:06]} Ne6 {[%clk 00:01:55]} {[%emt 00:00:01]} 48. Bxe6 {[%clk 00:00:13]}
fxe6 {[%clk 00:01:55]} {[%emt 00:00:01]} 49. R1b7 {[%clk 00:00:13]} {[%emt
00:00:01]} Rxb7 {[%clk 00:01:49]} {[%emt 00:00:09]} 50. Rxb7 {[%clk 00:00:13]}
Kg8 {[%clk 00:01:43]} {[%emt 00:00:09]} 51. Rxa7 {[%clk 00:00:13]} {[%emt
00:00:02]} Ra5 {[%clk 00:01:43]} 52. Ra8+ {[%clk 00:00:13]} {[%emt 00:00:01]}
Kf7 {[%clk 00:01:43]} {[%emt 00:00:02]} 53. Ra7+ {[%clk 00:00:13]} Kg8 {[%clk
00:01:40]} {[%emt 00:00:06]} 54. Ra8+ {[%clk 00:00:13]} Kh7 {[%clk 00:01:40]}
{[%emt 00:00:01]} 55. Ra7 {[%clk 00:00:13]} {[%emt 00:00:01]} g5 {[%clk
00:01:40]} 56. Bd6 {[%clk 00:00:13]} {[%emt 00:00:03]} Kg6 {[%clk 00:01:40]}
{[%emt 00:00:01]} 57. c5 {[%clk 00:00:13]} {[%emt 00:00:03]} Bd4 {[%emt
00:00:04]} 58. c6 {[%clk 00:00:13]} {[%emt 00:00:02]} g4+ {[%clk 00:01:39]}
{[%emt 00:00:04]} 59. Kxg4 {[%clk 00:00:12]} {[%emt 00:00:04]} Ra4 {[%clk
00:01:11]} {[%emt 00:00:30]} 60. c7 {[%clk 00:00:12]} {[%emt 00:00:01]} Rc4
{[%clk 00:01:11]} 61. Ra8 {[%clk 00:00:12]} 1-0

[Event "13 Open de Quenza"]
[Site "Quenza, France"]
[Date "2024.07.07"]
[Round "9.4"]
[White "Pieri, Pierre-Louis"]
[Black "Fressinet, Laurent"]
[Result "0-1"]
[TimeControl "5min+3s/move"]
[WhiteElo "2190"]
[BlackElo "2625"]

1. e4 {[%clk 00:05:03]} {[%emt 00:04:16]} e5 {[%clk 00:05:03]} {[%emt
00:00:01]} 2. Bc4 {[%clk 00:05:03]} Nf6 {[%clk 00:05:03]} {[%emt 00:00:01]} 3.
d3 {[%clk 00:05:03]} {[%emt 00:00:02]} Bc5 {[%clk 00:05:03]} {[%emt 00:00:03]}
4. Nc3 {[%clk 00:05:03]} {[%emt 00:00:02]} c6 {[%clk 00:05:00]} {[%emt
00:00:06]} 5. Nf3 {[%clk 00:05:03]} {[%emt 00:00:02]} d6 {[%clk 00:04:59]}
{[%emt 00:00:04]} 6. O-O {[%clk 00:04:57]} {[%emt 00:00:09]} a5 {[%clk
00:04:57]} {[%emt 00:00:06]} 7. a4 {[%clk 00:04:57]} {[%emt 00:00:03]} O-O
{[%clk 00:04:55]} {[%emt 00:00:05]} 8. Be3 {[%clk 00:04:31]} {[%emt 00:00:29]}
Nbd7 {[%clk 00:04:54]} {[%emt 00:00:04]} 9. Ba2 {[%clk 00:04:29]} {[%emt
00:00:05]} h6 {[%clk 00:04:51]} {[%emt 00:00:06]} 10. Re1 {[%clk 00:04:21]}
{[%emt 00:00:11]} Re8 {[%clk 00:04:37]} {[%emt 00:00:18]} 11. h3 {[%clk
00:03:59]} {[%emt 00:00:25]} Bb4 {[%clk 00:04:27]} {[%emt 00:00:12]} 12. Nh2
{[%clk 00:03:22]} {[%emt 00:00:40]} Nf8 {[%clk 00:04:25]} {[%emt 00:00:05]} 13.
Ng4 {[%clk 00:03:11]} {[%emt 00:00:15]} Nxg4 {[%clk 00:03:57]} {[%emt
00:00:31]} 14. hxg4 {[%clk 00:03:11]} {[%emt 00:00:01]} Be6 {[%clk 00:03:57]}
15. g3 {[%clk 00:02:41]} {[%emt 00:00:33]} d5 {[%clk 00:03:45]} {[%emt
00:00:15]} 16. Bd2 {[%clk 00:01:58]} {[%emt 00:00:46]} f6 {[%clk 00:03:30]}
{[%emt 00:00:17]} 17. Kg2 {[%clk 00:01:49]} {[%emt 00:00:12]} Qd7 {[%clk
00:03:16]} {[%emt 00:00:17]} 18. f3 {[%clk 00:01:49]} {[%emt 00:00:02]} Rad8
{[%clk 00:03:12]} {[%emt 00:00:07]} 19. Qe2 {[%emt 00:00:30]} Qf7 {[%clk
00:03:05]} {[%emt 00:00:10]} 20. Bb3 {[%clk 00:00:45]} {[%emt 00:00:41]} Bxc3
{[%clk 00:03:02]} {[%emt 00:00:06]} 21. bxc3 {[%clk 00:00:36]} {[%emt
00:00:12]} dxe4 {[%clk 00:02:59]} {[%emt 00:00:06]} 22. Qxe4 {[%clk 00:00:34]}
{[%emt 00:00:04]} Bxb3 {[%clk 00:02:44]} {[%emt 00:00:18]} 23. cxb3 {[%clk
00:00:34]} {[%emt 00:00:01]} Qxb3 {[%clk 00:02:30]} {[%emt 00:00:16]} 24. Kf2
{[%clk 00:00:17]} {[%emt 00:00:20]} Qf7 {[%clk 00:02:08]} {[%emt 00:00:26]} 25.
Rab1 {[%clk 00:00:17]} {[%emt 00:00:03]} Ne6 {[%clk 00:02:08]} 26. Qc4 {[%clk
00:00:17]} {[%emt 00:00:03]} Rd7 {[%clk 00:02:06]} {[%emt 00:00:05]} 27. Rb6
{[%clk 00:00:17]} {[%emt 00:00:03]} Red8 {[%clk 00:02:03]} {[%emt 00:00:06]} 28.
d4 {[%clk 00:00:17]} {[%emt 00:00:02]} Rd5 {[%clk 00:01:49]} {[%emt 00:00:17]}
29. Qb3 {[%clk 00:00:12]} {[%emt 00:00:08]} R8d7 {[%clk 00:01:36]} {[%emt
00:00:16]} 30. Bc1 {[%clk 00:00:08]} {[%emt 00:00:07]} exd4 {[%clk 00:01:34]}
{[%emt 00:00:05]} 31. c4 {[%clk 00:00:08]} Re5 {[%clk 00:01:34]} {[%emt
00:00:01]} 32. Rd1 {[%clk 00:00:05]} {[%emt 00:00:07]} Nc5 {[%clk 00:01:21]}
{[%emt 00:00:15]} 33. Qa3 {[%clk 00:00:05]} {[%emt 00:00:02]} Qxc4 {[%clk
00:01:18]} {[%emt 00:00:06]} 34. Rb2 {[%clk 00:00:04]} {[%emt 00:00:04]} Rde7
{[%clk 00:01:16]} {[%emt 00:00:05]} 35. Bf4 {[%clk 00:00:04]} {[%emt 00:00:02]}
Re2+ {[%clk 00:01:16]} {[%emt 00:00:02]} 36. Rxe2 {[%clk 00:00:04]} {[%emt
00:00:02]} Qxe2+ {[%clk 00:01:16]} {[%emt 00:00:02]} 0-1

[Event "13 Open de Quenza"]
[Site "Quenza, France"]
[Date "2024.07.07"]
[Round "9.5"]
[White "Podvin, Antoine"]
[Black "Maurizzi, Marc Andria"]
[Result "0-1"]
[TimeControl "5min+3s/move"]
[WhiteElo "2056"]
[BlackElo "2620"]

1. d4 {[%clk 00:05:03]} {[%emt 00:00:01]} Nf6 {[%clk 00:05:03]} {[%emt
00:00:01]} 2. Nc3 {[%clk 00:05:03]} e6 {[%clk 00:05:03]} {[%emt 00:00:03]} 3.
e4 {[%clk 00:05:03]} {[%emt 00:00:01]} d5 {[%clk 00:05:03]} 4. e5 {[%clk
00:05:03]} Nfd7 {[%clk 00:05:03]} 5. f4 {[%clk 00:05:03]} c5 {[%clk 00:05:03]}
6. Nf3 {[%emt 00:00:02]} Nc6 7. Ne2 {[%clk 00:05:03]} a5 {[%clk 00:05:01]}
{[%emt 00:00:06]} 8. c3 {[%clk 00:05:03]} {[%emt 00:00:01]} a4 {[%clk
00:05:01]} {[%emt 00:00:01]} 9. a3 {[%clk 00:05:02]} {[%emt 00:00:05]} Qa5
{[%clk 00:05:01]} 10. g3 {[%clk 00:04:59]} {[%emt 00:00:05]} b6 {[%clk
00:05:01]} {[%emt 00:00:03]} 11. Bh3 {[%clk 00:04:58]} {[%emt 00:00:04]} Qb5
{[%clk 00:04:48]} {[%emt 00:00:15]} 12. O-O {[%clk 00:04:53]} {[%emt 00:00:08]}
Ba6 {[%clk 00:04:48]} {[%emt 00:00:02]} 13. Rf2 {[%clk 00:04:53]} {[%emt
00:00:01]} Qb3 {[%clk 00:04:48]} {[%emt 00:00:03]} 14. Qd2 {[%clk 00:04:39]}
{[%emt 00:00:17]} g6 {[%clk 00:04:47]} {[%emt 00:00:04]} 15. g4 {[%clk
00:04:24]} {[%emt 00:00:18]} Bh6 {[%clk 00:03:18]} {[%emt 00:01:32]} 16. Qe1
{[%clk 00:03:59]} {[%emt 00:00:28]} O-O-O {[%clk 00:03:18]} {[%emt 00:00:02]}
17. Ng3 {[%clk 00:03:36]} {[%emt 00:00:25]} Kb7 {[%clk 00:03:08]} {[%emt
00:00:14]} 18. Kh1 {[%clk 00:03:05]} {[%emt 00:00:35]} Bd3 {[%clk 00:03:02]}
{[%emt 00:00:09]} 19. Bf1 {[%clk 00:02:52]} {[%emt 00:00:16]} Bxf1 {[%clk
00:03:01]} {[%emt 00:00:04]} 20. Qxf1 {[%clk 00:02:46]} {[%emt 00:00:08]} Qc4
{[%clk 00:02:51]} {[%emt 00:00:13]} 21. Qxc4 {[%clk 00:02:43]} {[%emt
00:00:06]} dxc4 {[%clk 00:02:51]} {[%emt 00:00:01]} 22. Be3 {[%clk 00:02:35]}
{[%emt 00:00:11]} cxd4 {[%clk 00:02:49]} {[%emt 00:00:06]} 23. cxd4 {[%clk
00:02:11]} {[%emt 00:00:27]} b5 {[%clk 00:02:47]} {[%emt 00:00:05]} 24. Ne4
{[%clk 00:02:11]} {[%emt 00:00:01]} Kc7 {[%clk 00:02:36]} {[%emt 00:00:14]} 25.
Rd1 {[%clk 00:02:06]} {[%emt 00:00:08]} Nb6 {[%clk 00:02:36]} {[%emt 00:00:01]}
26. Nd6 {[%clk 00:01:51]} {[%emt 00:00:18]} Nd5 {[%clk 00:02:33]} {[%emt
00:00:06]} 27. Bd2 {[%clk 00:01:40]} {[%emt 00:00:13]} Rxd6 {[%clk 00:02:33]}
{[%emt 00:00:02]} 28. exd6+ {[%clk 00:01:40]} {[%emt 00:00:01]} Kxd6 {[%clk
00:02:33]} 29. g5 {[%clk 00:01:37]} {[%emt 00:00:07]} Bg7 {[%clk 00:02:33]} 30.
Bc1 {[%clk 00:01:24]} {[%emt 00:00:15]} Nce7 {[%clk 00:02:28]} {[%emt
00:00:08]} 31. Ne5 {[%clk 00:01:24]} {[%emt 00:00:02]} Rf8 {[%clk 00:02:28]}
{[%emt 00:00:01]} 32. Bd2 {[%clk 00:01:17]} {[%emt 00:00:11]} Nf5 {[%clk
00:02:28]} 33. Bb4+ {[%clk 00:01:15]} {[%emt 00:00:05]} Nxb4 {[%clk 00:02:28]}
{[%emt 00:00:01]} 34. axb4 {[%clk 00:01:15]} Ne3 {[%clk 00:02:23]} {[%emt
00:00:08]} 35. Rdd2 {[%clk 00:01:08]} {[%emt 00:00:10]} Nd5 {[%clk 00:02:23]}
36. Rf3 {[%clk 00:01:08]} h6 {[%clk 00:02:13]} {[%emt 00:00:12]} 37. h4 {[%clk
00:01:01]} {[%emt 00:00:11]} Nxb4 {[%clk 00:02:12]} {[%emt 00:00:04]} 38. Rh3
{[%clk 00:00:43]} {[%emt 00:00:20]} h5 {[%clk 00:02:10]} {[%emt 00:00:06]} 39.
Kg2 {[%clk 00:00:43]} {[%emt 00:00:02]} Nd5 {[%clk 00:02:10]} {[%emt 00:00:03]}
40. Kf3 {[%clk 00:00:32]} {[%emt 00:00:14]} Ke7 {[%clk 00:02:10]} {[%emt
00:00:03]} 41. Ke4 {[%clk 00:00:30]} {[%emt 00:00:05]} Rc8 {[%clk 00:02:10]}
{[%emt 00:00:04]} 42. Rg3 {[%clk 00:00:18]} {[%emt 00:00:15]} b4 {[%clk
00:02:00]} {[%emt 00:00:12]} 43. Rc2 {[%clk 00:00:16]} {[%emt 00:00:04]} c3
{[%clk 00:02:00]} 44. bxc3 {[%clk 00:00:15]} {[%emt 00:00:04]} b3 {[%clk
00:01:59]} {[%emt 00:00:05]} 45. Rb2 {[%clk 00:00:10]} {[%emt 00:00:08]} Nxc3+
{[%clk 00:01:58]} {[%emt 00:00:04]} 46. Kd3 {[%clk 00:00:06]} {[%emt 00:00:07]}
Nd5 {[%clk 00:01:58]} {[%emt 00:00:01]} 47. Ke4 {[%clk 00:00:06]} Nc3+ {[%clk
00:01:50]} {[%emt 00:00:11]} 48. Kd3 {[%clk 00:00:06]} {[%emt 00:00:01]} Nb5
{[%clk 00:01:50]} 0-1

[Event "13 Open de Quenza"]
[Site "Quenza, France"]
[Date "2024.07.07"]
[Round "9.6"]
[White "Travadon, Loic"]
[Black "Kuru, Atilla"]
[Result "1-0"]
[TimeControl "5min+3s/move"]
[WhiteElo "2458"]
[BlackElo "2372"]

1. e4 {[%clk 00:05:03]} {[%emt 00:00:02]} e6 {[%clk 00:05:03]} {[%emt
00:00:02]} 2. d3 {[%clk 00:05:03]} {[%emt 00:00:04]} c5 {[%clk 00:05:03]}
{[%emt 00:00:03]} 3. Nf3 {[%clk 00:05:03]} {[%emt 00:00:04]} d5 {[%clk
00:05:03]} 4. Nbd2 {[%clk 00:05:03]} {[%emt 00:00:01]} Nc6 {[%clk 00:05:03]}
{[%emt 00:00:02]} 5. g3 {[%clk 00:05:03]} Nf6 {[%clk 00:05:03]} {[%emt
00:00:03]} 6. Bg2 {[%clk 00:05:03]} Bd6 {[%clk 00:05:03]} {[%emt 00:00:03]} 7.
O-O {[%clk 00:05:03]} {[%emt 00:00:02]} O-O {[%clk 00:05:03]} {[%emt 00:00:02]}
8. Re1 {[%clk 00:05:03]} {[%emt 00:00:02]} e5 {[%clk 00:05:03]} {[%emt
00:00:02]} 9. exd5 {[%clk 00:05:03]} {[%emt 00:00:02]} Nxd5 {[%clk 00:05:03]}
{[%emt 00:00:01]} 10. a4 {[%clk 00:05:03]} {[%emt 00:00:02]} Re8 {[%clk
00:04:58]} {[%emt 00:00:07]} 11. Nc4 {[%clk 00:05:03]} {[%emt 00:00:02]} Bc7
{[%clk 00:04:48]} {[%emt 00:00:14]} 12. Bg5 {[%clk 00:04:57]} {[%emt 00:00:09]}
f6 {[%clk 00:04:47]} {[%emt 00:00:04]} 13. Bd2 {[%clk 00:04:57]} {[%emt
00:00:01]} Be6 {[%clk 00:04:40]} {[%emt 00:00:10]} 14. a5 {[%clk 00:04:52]}
{[%emt 00:00:08]} Qd7 {[%clk 00:04:39]} {[%emt 00:00:03]} 15. c3 {[%clk
00:04:52]} b5 {[%clk 00:04:32]} {[%emt 00:00:14]} 16. axb6 {[%clk 00:04:52]}
axb6 {[%clk 00:04:32]} {[%emt 00:00:04]} 17. Rxa8 {[%clk 00:04:52]} Rxa8 {[%emt
00:00:28]} 18. Qc2 {[%clk 00:04:26]} b5 {[%clk 00:04:24]} {[%emt 00:00:16]} 19.
Ne3 {[%clk 00:04:25]} Nde7 {[%emt 00:00:24]} 20. Bc1 {[%clk 00:04:24]} {[%emt
00:00:02]} Bb6 {[%clk 00:04:09]} {[%emt 00:00:03]} 21. Nd2 {[%clk 00:04:24]}
{[%emt 00:00:02]} Rd8 {[%clk 00:04:07]} {[%emt 00:00:04]} 22. Ne4 {[%clk
00:04:24]} {[%emt 00:00:02]} Qxd3 {[%clk 00:04:02]} {[%emt 00:00:08]} 23. Qxd3
{[%clk 00:04:24]} {[%emt 00:00:01]} Rxd3 {[%clk 00:04:02]} 24. Bf1 {[%clk
00:04:24]} {[%emt 00:00:01]} Rd8 {[%clk 00:04:01]} {[%emt 00:00:04]} 25. Bxb5
{[%clk 00:04:24]} {[%emt 00:00:02]} Na5 {[%clk 00:04:00]} {[%emt 00:00:03]} 26.
Nd2 {[%clk 00:04:11]} {[%emt 00:00:16]} Bc7 {[%clk 00:03:29]} {[%emt 00:00:34]}
27. Nec4 {[%clk 00:04:05]} {[%emt 00:00:09]} Rb8 {[%clk 00:03:26]} {[%emt
00:00:06]} 28. Na3 {[%clk 00:04:02]} {[%emt 00:00:07]} Nf5 {[%clk 00:03:21]}
{[%emt 00:00:08]} 29. Ne4 {[%clk 00:04:02]} {[%emt 00:00:03]} Nb3 {[%clk
00:03:15]} {[%emt 00:00:09]} 30. Bc4 {[%clk 00:03:58]} {[%emt 00:00:06]} Bxc4
{[%clk 00:03:10]} {[%emt 00:00:08]} 31. Nxc4 {[%clk 00:03:58]} {[%emt
00:00:01]} Rd8 {[%clk 00:03:01]} {[%emt 00:00:12]} 32. Bd2 {[%clk 00:03:41]}
{[%emt 00:00:21]} Kf7 {[%clk 00:02:41]} {[%emt 00:00:23]} 33. f3 {[%clk
00:03:40]} {[%emt 00:00:04]} h5 {[%clk 00:02:39]} {[%emt 00:00:04]} 34. Kf2
{[%clk 00:03:39]} {[%emt 00:00:04]} Rd3 {[%clk 00:02:21]} {[%emt 00:00:21]} 35.
Ke2 {[%clk 00:03:36]} {[%emt 00:00:07]} Rd8 {[%clk 00:02:21]} {[%emt 00:00:02]}
36. Be3 {[%clk 00:03:34]} {[%emt 00:00:05]} Nxe3 {[%clk 00:02:21]} {[%emt
00:00:04]} 37. Nxe3 {[%clk 00:03:34]} {[%emt 00:00:02]} Ke6 {[%clk 00:02:20]}
{[%emt 00:00:04]} 38. Rd1 {[%clk 00:03:20]} {[%emt 00:00:17]} Ra8 {[%clk
00:01:51]} {[%emt 00:00:31]} 39. Kd3 {[%clk 00:03:03]} {[%emt 00:00:20]} f5
{[%clk 00:01:42]} {[%emt 00:00:12]} 40. Ng5+ {[%clk 00:03:03]} {[%emt
00:00:01]} Kf6 {[%clk 00:01:37]} {[%emt 00:00:09]} 41. h4 {[%clk 00:03:03]}
{[%emt 00:00:01]} Bd8 {[%clk 00:01:08]} {[%emt 00:00:31]} 42. Kc2 {[%clk
00:03:03]} {[%emt 00:00:02]} Na5 {[%clk 00:01:02]} {[%emt 00:00:09]} 43. Rd6+
{[%clk 00:03:03]} {[%emt 00:00:02]} Ke7 {[%clk 00:01:01]} {[%emt 00:00:05]} 44.
Nxf5+ {[%clk 00:03:03]} {[%emt 00:00:02]} Ke8 {[%clk 05:05:15]} {[%emt
00:00:04]} 45. Nxg7+ {[%clk 00:03:03]} {[%emt 00:00:02]} Ke7 {[%clk 00:00:58]}
{[%emt 00:00:05]} 46. Nf5+ {[%clk 00:03:03]} {[%emt 00:00:02]} Ke8 {[%clk
00:00:58]} {[%emt 00:00:01]} 47. Ne3 {[%clk 00:02:49]} {[%emt 00:00:16]} Be7
{[%clk 00:00:45]} {[%emt 00:00:16]} 48. Re6 {[%clk 00:02:49]} {[%emt 00:00:02]}
Kd7 {[%clk 00:00:39]} {[%emt 00:00:10]} 49. Rxe5 {[%clk 00:02:49]} {[%emt
00:00:02]} Nc6 {[%clk 00:00:39]} {[%emt 00:00:01]} 50. Rd5+ {[%clk 00:02:49]}
{[%emt 00:00:02]} Kc7 {[%clk 00:00:39]} {[%emt 00:00:01]} 51. Nf5 {[%clk
00:02:49]} {[%emt 00:00:03]} Bf8 {[%clk 00:00:06]} {[%emt 00:00:35]} 52. g4
{[%clk 00:02:37]} {[%emt 00:00:16]} hxg4 {[%emt 00:00:07]} 1-0